bitfinex-derivatives/quotes_ETHF0:USTF0_20241005
["timestamp","ask_amount","ask_price","bid_price","bid_amount"]
[1728158061082,1.35,2395.4,2395.3,2.35504256]
[1728158061283,1.35,2395.4,2395.3,2.68904256]
[1728158063087,0.897,2395.5,2395.4,0.33399]
[1728158063088,1.35,2395.5,2395.4,0.33399]
[1728158063294,3.2078,2395.6,2395.5,0.33397]
[1728158063486,3.2078,2395.6,2395.5,3.11256758]
[1728158063688,5.035,2395.8,2395.7,0.33394]
[1728158063689,4.138,2395.8,2395.7,0.33394]
[1728158063883,3.2078,2395.9,2395.7,3.32548058]
[1728158064190,3.2078,2395.9,2395.6,3.02062181]
[1728158064191,1.35,2395.9,2395.8,3.65941058]
[1728158064389,1.35,2395.9,2395.8,2.01768141]
[1728158064698,1.35,2395.9,2395.8,3.65941058]
[1728158064882,1.35,2395.9,2395.8,2.01768141]
[1728158065191,1.35,2395.9,2395.8,2.77803204]
[1728158065498,1.35,2395.9,2395.8,1.09428063]
[1728158065690,1.35,2395.9,2395.8,1.42821063]
[1728158065882,1.68392,2395.9,2395.8,1.09428063]
[1728158066081,0.33393,2395.8,2395.7,1.09428063]
[1728158066790,1.7585,2395.9,2395.6,2.33728063]
[1728158066990,0.4085,2395.9,2395.6,2.33728063]
[1728158067191,0.4085,2395.9,2395.6,2.88472917]
[1728158067192,1.35,2395.7,2395.6,2.88472917]
[1728158067492,1.35,2395.7,2395.6,4.01973533]
[1728158068091,1.35,2395.7,2395.6,4.35369533]
[1728158068487,1.35,2395.7,2395.6,4.35357991]
[1728158070399,1.35,2395.7,2395.6,2.67094647]
[1728158070889,1.35,2395.7,2395.6,4.35339356]
[1728158071086,1.35,2395.7,2395.6,2.67094647]
[1728158072593,1.35,2395.7,2395.6,2.33698647]
[1728158073489,1.35,2395.7,2395.6,2.67094647]
[1728158073887,1.35,2395.7,2395.6,4.35310824]
[1728158074088,1.35,2395.7,2395.6,2.67094647]
[1728158074583,1.35,2395.7,2395.6,2.33698647]
[1728158075291,1.35,2395.7,2395.6,2.67094647]
[1728158078591,1.35,2395.7,2395.6,6.84534647]
[1728158081198,1.35,2395.7,2395.6,2.67094647]
[1728158081392,1.35,2395.7,2395.6,6.84534647]
[1728158081590,1.35,2395.7,2395.6,2.67094647]
[1728158081794,1.35,2395.7,2395.6,6.84534647]
[1728158081992,1.35,2395.7,2395.6,2.67094647]
[1728158082296,1.35,2395.7,2395.6,6.84534647]
[1728158082603,1.35,2395.7,2395.6,2.67094647]
[1728158083998,3.2078,2396.0,2395.6,12.84534647]
[1728158084307,4.25,2396.4,2396.2,0.33387]
[1728158084308,3.4018,2396.3,2396.2,0.33387]
[1728158084603,3.2078,2396.3,2396.2,0.33387]
[1728158086706,3.54166,2396.3,2396.2,0.33387]
[1728158087606,0.33386,2396.3,2396.2,0.33387]
[1728158087805,3.54166,2396.3,2396.1,0.33388]
[1728158088901,3.2078,2396.3,2396.2,0.33387]
[1728158089401,3.2078,2396.3,2396.2,4.50667]
[1728158090910,0.33384,2396.5,2396.2,4.1728]
[1728158090911,1.35,2396.5,2396.2,4.1728]
[1728158091107,1.35,2396.5,2396.3,0.33385]
[1728158091309,1.35,2396.5,2396.4,1.2293]
[1728158091625,3.54163,2396.6,2396.4,1.2293]
[1728158091814,1.68383,2396.5,2396.4,1.2293]
[1728158093204,1.35,2396.5,2396.4,1.2293]
[1728158095403,1.68383,2396.5,2396.4,1.2293]
[1728158101215,1.68383,2396.5,2396.0,4.39751779]
[1728158101216,0.33385,2396.4,2396.1,0.33388]
[1728158101509,0.33385,2396.4,2396.1,6.1632085]
[1728158101510,1.35,2396.3,2396.1,6.1632085]
[1728158101716,1.35,2396.3,2396.2,0.33387]
[1728158102411,0.4152,2396.4,2396.3,0.33386]
[1728158105912,1.35,2396.5,2396.3,0.33386]
[1728158106114,1.35,2396.5,2396.4,0.4255]
[1728158106315,1.35,2396.5,2396.4,0.8204]
[1728158106515,3.54163,2396.6,2396.4,0.8204]
[1728158106516,4.89163,2396.6,2396.4,0.8204]
[1728158108318,4.89163,2396.6,2396.4,1.15424]
[1728158109015,1.68383,2396.6,2396.4,1.15424]
[1728158109718,0.4214,2396.7,2396.6,0.33382]
[1728158112616,3.6322,2396.8,2396.5,0.389]
[1728158112817,3.6322,2396.8,2396.7,0.3338]
[1728158112818,0.4244,2396.8,2396.7,0.3338]
[1728158114124,0.4244,2396.8,2396.6,0.33381]
[1728158114528,0.4244,2396.8,2396.7,0.3992]
[1728158116026,0.4244,2396.8,2396.7,0.733]
[1728158116426,0.4244,2396.8,2396.7,0.3992]
[1728158117125,0.72378,2396.9,2396.7,0.3992]
[1728158117321,1.11518,2396.9,2396.7,0.3992]
[1728158117525,1.11518,2396.9,2396.7,0.8001]
[1728158119223,3.2078,2397.2,2396.7,0.8001]
[1728158119526,0.895,2397.0,2396.8,0.72488]
[1728158120016,1.2864,2397.0,2396.8,0.72488]
[1728158121728,2.6364,2397.0,2396.8,0.72488]
[1728158125035,2.97016,2397.0,2396.8,0.72488]
[1728158125432,2.97016,2397.0,2396.6,1.64172917]
[1728158125433,0.33379,2396.8,2396.6,1.09271779]
[1728158125635,1.7619,2396.7,2396.5,1.92101779]
[1728158125839,0.4119,2396.7,2396.6,0.33382]
[1728158126137,0.4119,2396.7,2396.6,8.9322661]
[1728158126539,0.4119,2396.7,2396.6,9.2660861]
[1728158129532,0.4119,2396.7,2396.6,10.35880389]
[1728158135139,0.4119,2396.7,2396.6,12.0360663]
[1728158135339,0.4119,2396.7,2396.6,10.35880389]
[1728158135737,0.4119,2396.7,2396.6,12.0362277]
[1728158138343,2.57877,2397.0,2396.7,0.3338]
[1728158138536,2.57877,2397.0,2396.8,0.4058]
[1728158138743,2.57877,2397.0,2396.8,0.8238]
[1728158139134,0.33378,2396.9,2396.8,0.8238]
[1728158139330,0.72488,2396.9,2396.8,0.8238]
[1728158141448,0.72488,2396.9,2396.7,1.50352841]
[1728158141645,1.51028,2396.9,2396.7,1.50352841]
[1728158141847,0.33379,2396.8,2396.7,1.50352841]
[1728158142342,1.51028,2396.9,2396.7,1.50352841]
[1728158142847,1.1765,2396.9,2396.7,1.50352841]
[1728158143041,1.51028,2396.9,2396.7,1.50352841]
[1728158143340,1.51028,2396.9,2396.7,1.09322841]
[1728158143341,1.68379,2396.8,2396.7,1.09322841]
[1728158143544,0.3338,2396.7,2396.6,1.09322841]
[1728158143737,1.6838,2396.7,2396.6,1.09322841]
[1728158143938,1.35,2396.7,2396.5,1.09322841]
[1728158144142,1.2053,2396.6,2396.5,1.09322841]
[1728158144340,1.2053,2396.6,2396.5,2.77147832]
[1728158145352,1.2053,2396.6,2396.5,1.09322841]
[1728158145642,1.2053,2396.6,2396.5,2.7716618]
[1728158146049,0.808,2396.6,2396.5,2.7716618]
[1728158146249,0.808,2396.6,2396.5,1.67843339]
[1728158146449,0.808,2396.6,2396.5,3.32016256]
[1728158148151,0.808,2396.6,2396.5,3.3202819]
[1728158150154,0.808,2396.6,2396.5,2.77252201]
[1728158150351,1.14182,2396.6,2396.5,2.77252201]
[1728158151450,0.808,2396.6,2396.5,2.77252201]
[1728158152047,0.808,2396.6,2396.5,3.3202819]
[1728158152252,0.808,2396.6,2396.5,2.77263395]
[1728158152566,0.808,2396.6,2396.5,3.3202819]
[1728158152855,0.808,2396.6,2396.5,3.3207379]
[1728158153352,0.808,2396.6,2396.5,3.6545679]
[1728158153548,0.808,2396.6,2396.5,3.10696523]
[1728158153941,0.808,2396.6,2396.5,2.01283873]
[1728158154145,0.808,2396.6,2396.5,3.10696985]
[1728158154347,1.14182,2396.6,2396.5,2.77313985]
[1728158154549,1.14182,2396.6,2396.5,1.09413112]
[1728158155151,0.808,2396.6,2396.5,2.77319136]
[1728158155653,0.808,2396.6,2396.5,2.77313953]
[1728158155853,0.808,2396.6,2396.5,1.09413112]
[1728158156259,0.808,2396.6,2396.5,2.77317769]
[1728158157257,0.808,2396.6,2396.5,1.09413112]
[1728158158856,0.808,2396.6,2396.5,1.42796112]
[1728158160851,1.14182,2396.6,2396.5,1.09413112]
[1728158161352,0.808,2396.6,2396.4,1.48603112]
[1728158161545,1.35,2396.5,2396.4,1.48603112]
[1728158161859,1.35,2396.5,2396.4,4.0461849]
[1728158162251,1.35,2396.5,2396.4,3.49836039]
[1728158162452,1.35,2396.5,2396.4,4.0461849]
[1728158162947,1.35,2396.5,2396.4,3.49833916]
[1728158164358,1.35,2396.5,2396.4,3.7123349]
[1728158164660,1.68383,2396.5,2396.4,3.49826336]
[1728158164861,1.35,2396.5,2396.4,3.49826336]
[1728158165063,1.35,2396.5,2396.4,3.49810916]
[1728158166259,1.35,2396.5,2396.4,3.49816507]
[1728158166863,1.35,2396.5,2396.4,2.40435744]
[1728158167258,1.35,2396.5,2396.4,4.04608661]
[1728158168459,1.35,2396.5,2396.4,3.49834606]
[1728158169058,1.35,2396.5,2396.4,4.04608661]
[1728158169356,1.35,2396.5,2396.4,3.49845078]
[1728158169554,1.35,2396.5,2396.4,4.04608661]
[1728158175960,1.35,2396.5,2396.4,4.04695302]
[1728158179468,1.35,2396.5,2396.4,3.71310302]
[1728158179662,1.68383,2396.5,2396.4,1.48645475]
[1728158188073,1.68383,2396.5,2396.4,3.16653601]
[1728158188669,1.68383,2396.5,2396.4,1.48645475]
[1728158195875,0.808,2396.6,2396.4,1.48645475]
[1728158196072,0.33383,2396.5,2396.4,1.48645475]
[1728158196271,0.33383,2396.5,2396.4,3.1667272]
[1728158196473,0.33383,2396.5,2396.4,1.48645475]
[1728158196669,0.33383,2396.5,2396.4,3.7138279]
[1728158197680,0.33383,2396.5,2396.4,3.16705315]
[1728158197876,0.33383,2396.5,2396.4,3.7138279]
[1728158199981,0.33383,2396.5,2396.4,3.16710214]
[1728158200181,0.33383,2396.5,2396.4,3.16730347]
[1728158200973,0.33383,2396.5,2396.4,3.16732016]
[1728158204396,0.33383,2396.5,2396.4,1.48690341]
[1728158204595,4.5578,2396.6,2396.4,1.48690341]
[1728158204798,0.33383,2396.5,2396.4,1.48690341]
[1728158209606,0.33383,2396.5,2396.4,3.16742556]
[1728158210109,0.33383,2396.5,2396.4,3.16743218]
[1728158211103,0.33383,2396.5,2396.4,3.16746434]
[1728158211805,0.33383,2396.5,2396.4,3.16759162]
[1728158212006,0.33383,2396.5,2396.4,3.7141901]
[1728158213413,0.33383,2396.5,2396.4,3.16761223]
[1728158213808,0.33383,2396.5,2396.4,2.07246093]
[1728158214399,0.33383,2396.5,2396.4,3.7141901]
[1728158214606,0.33383,2396.5,2396.4,3.1676624]
[1728158214807,0.33383,2396.5,2396.4,3.16774184]
[1728158215606,0.33383,2396.5,2396.4,2.07254037]
[1728158216312,0.33383,2396.5,2396.4,3.16775827]
[1728158216611,0.33383,2396.5,2396.4,3.71426954]
[1728158219708,0.33383,2396.5,2396.4,3.71446491]
[1728158221209,1.35,2396.6,2396.4,3.71446491]
[1728158221530,1.68383,2396.6,2396.5,2.77631737]
[1728158222712,1.68383,2396.6,2396.5,2.77640095]
[1728158223111,1.68383,2396.6,2396.5,2.77646492]
[1728158223514,1.68383,2396.6,2396.5,3.32275411]
[1728158223916,1.68383,2396.6,2396.5,2.77651597]
[1728158224415,1.68383,2396.6,2396.5,3.32275411]
[1728158224815,1.68383,2396.6,2396.5,2.7765661]
[1728158225405,1.68383,2396.6,2396.5,3.32275411]
[1728158229922,1.68383,2396.6,2396.5,2.77655093]
[1728158230119,1.68383,2396.6,2396.5,1.68102494]
[1728158230321,1.68383,2396.6,2396.5,3.32275411]
[1728158230719,1.68383,2396.6,2396.5,1.68102494]
[1728158231520,1.68383,2396.6,2396.5,3.32275411]
[1728158231818,1.68383,2396.6,2396.5,2.77652239]
[1728158232922,2.08543,2396.6,2396.5,2.77661588]
[1728158234217,2.08543,2396.6,2396.5,3.3228476]
[1728158234416,2.08543,2396.6,2396.5,2.7765875]
[1728158234627,2.08543,2396.6,2396.5,3.3228476]
[1728158234926,1.68383,2396.6,2396.5,3.3228476]
[1728158237823,1.68383,2396.6,2396.5,3.32273293]
[1728158242727,1.68383,2396.6,2396.5,3.32266515]
[1728158244035,1.35,2396.6,2396.5,3.32266515]
[1728158244540,1.35,2396.7,2396.5,3.65649515]
[1728158244831,1.35,2396.7,2396.6,3.59589835]
[1728158245235,1.35,2396.7,2396.6,4.14229799]
[1728158247532,1.35,2396.7,2396.6,4.1420489]
[1728158248629,1.6838,2396.7,2396.6,4.1420489]
[1728158249029,1.6838,2396.7,2396.6,4.14183711]
[1728158252532,1.6838,2396.7,2396.6,4.14155873]
[1728158252836,2.1029,2396.7,2396.6,4.14155873]
[1728158256742,1.7691,2396.7,2396.6,4.14155873]
[1728158257440,1.7691,2396.7,2396.6,4.14142459]
[1728158259935,1.7691,2396.7,2396.6,4.47524459]
[1728158261839,2.1029,2396.7,2396.6,4.14142459]
[1728158262045,1.7691,2396.7,2396.6,4.14142459]
[1728158262347,1.7691,2396.7,2396.6,4.14134615]
[1728158262748,1.7691,2396.7,2396.6,4.47516615]
[1728158267858,2.1029,2396.7,2396.6,3.73674615]
[1728158268056,1.7691,2396.7,2396.6,3.73674615]
[1728158268355,2.1029,2396.7,2396.6,3.73674615]
[1728158268556,1.7691,2396.7,2396.6,3.73674615]
[1728158268757,1.7691,2396.7,2396.6,2.09501698]
[1728158269157,1.7691,2396.7,2396.6,3.73674615]
[1728158276448,2.1029,2396.7,2396.6,4.13734615]
[1728158280657,2.1029,2396.7,2396.6,3.32164615]
[1728158281250,2.1029,2396.7,2396.6,1.67991698]
[1728158281455,2.1029,2396.7,2396.6,3.32164615]
[1728158282763,5.3107,2396.7,2396.6,3.32164615]
[1728158283158,2.1029,2396.7,2396.6,3.32164615]
[1728158283466,5.3107,2396.7,2396.6,3.32164615]
[1728158285266,5.3107,2396.7,2396.6,3.32253135]
[1728158285465,2.1029,2396.7,2396.6,3.32253135]
[1728158285662,5.3107,2396.7,2396.6,3.32253135]
[1728158286463,5.3107,2396.7,2396.6,3.32269745]
[1728158290066,5.3107,2396.7,2396.6,3.32299746]
[1728158295070,5.3107,2396.7,2396.6,3.32321349]
[1728158295268,3.2078,2396.7,2396.6,3.65703349]
[1728158295571,3.5416,2396.7,2396.6,2.08508432]
[1728158295873,3.9436,2396.7,2396.6,3.7286591]
[1728158300278,3.9436,2396.7,2396.6,3.3250591]
[1728158300472,4.0196,2396.7,2396.5,1.09567469]
[1728158300665,2.08082,2396.6,2396.5,1.09567469]
[1728158300871,0.33383,2396.5,2396.4,1.48397469]
[1728158301067,0.33383,2396.5,2396.4,3.56656482]
[1728158302773,0.33383,2396.5,2396.4,3.56599391]
[1728158302973,0.33383,2396.5,2396.4,1.88547469]
[1728158303272,0.33383,2396.5,2396.4,3.56600469]
[1728158303678,0.33383,2396.5,2396.4,1.88547469]
[1728158304277,0.33383,2396.5,2396.4,3.56583604]
[1728158304675,0.33383,2396.5,2396.4,1.88547469]
[1728158305072,0.33383,2396.5,2396.4,3.56568796]
[1728158305374,0.33383,2396.5,2396.4,1.88547469]
[1728158305878,0.33383,2396.5,2396.4,3.56557948]
[1728158306182,0.33383,2396.5,2396.4,4.11347957]
[1728158306774,1.35,2396.6,2396.4,4.11347957]
[1728158306970,1.35,2396.6,2396.5,1.09479943]
[1728158306971,1.68382,2396.6,2396.5,1.09479943]
[1728158315487,1.68382,2396.6,2396.5,1.52049943]
[1728158332503,1.68382,2396.6,2396.5,3.20069777]
[1728158334205,1.68382,2396.6,2396.5,3.20075378]
[1728158334704,1.68382,2396.6,2396.5,3.20081846]
[1728158334905,1.68382,2396.6,2396.5,3.20083269]
[1728158335700,0.33382,2396.6,2396.5,3.20083269]
[1728158337311,1.13811,2396.7,2396.5,3.53466269]
[1728158337511,1.13811,2396.7,2396.5,1.85432943]
[1728158338111,1.13811,2396.7,2396.6,1.09479943]
[1728158340912,0.8043,2396.7,2396.5,1.52049943]
[1728158341214,1.68382,2396.6,2396.5,1.52049943]
[1728158341411,1.35,2396.6,2396.5,3.20116821]
[1728158341608,1.35,2396.6,2396.5,4.08377356]
[1728158352210,1.35,2396.6,2396.5,4.08432478]
[1728158352719,0.74071,2396.7,2396.5,4.08400497]
[1728158353014,0.74071,2396.7,2396.6,4.41997546]
[1728158353218,0.194,2397.1,2396.9,0.33377]
[1728158353423,10.92498505,2397.2,2397.0,4.55560823]
[1728158353623,10.92498505,2397.2,2397.1,1.09510877]
[1728158353624,6.78698505,2397.2,2397.1,1.09510877]
[1728158354121,6.78698505,2397.2,2397.1,2.77577976]
[1728158354316,6.78698505,2397.2,2397.1,1.09510877]
[1728158354714,0.097,2397.4,2397.2,0.33373]
[1728158354919,0.097,2397.4,2397.3,0.8358]
[1728158354920,1.35,2397.4,2397.3,0.8358]
[1728158355121,1.68371,2397.4,2397.3,0.8358]
[1728158362325,1.35,2397.4,2397.3,0.8358]
[1728158362524,1.35,2397.4,2397.3,1.16952]
[1728158362725,1.35,2397.4,2397.3,0.8358]
[1728158362925,4.44257,2397.7,2397.4,0.33371]
[1728158363122,0.79776617,2398.1,2397.6,0.33368]
[1728158363123,0.33365,2397.9,2397.6,0.33368]
[1728158363335,2.24,2397.9,2397.7,1.16676]
[1728158363538,2.57364,2397.9,2397.8,0.3995]
[1728158364136,1.68364,2397.9,2397.8,0.3995]
[1728158387342,0.33364,2397.9,2397.8,0.3995]
[1728158387643,1.68365,2397.9,2397.7,0.8331]
[1728158389345,1.35,2397.9,2397.7,0.8331]
[1728158389852,1.68364,2397.9,2397.7,0.8331]
[1728158390352,1.35,2397.9,2397.7,0.8331]
[1728158390851,1.68364,2397.9,2397.7,0.8331]
[1728158392350,1.35,2397.9,2397.7,0.8331]
[1728158392647,2.98983,2398.0,2397.7,1.16676]
[1728158392847,2.98983,2398.0,2397.7,0.8331]
[1728158394246,2.6562,2398.0,2397.7,0.8331]
[1728158394453,0.33365,2397.9,2397.7,0.8331]
[1728158395954,2.98983,2398.0,2397.7,0.8331]
[1728158399144,0.33364,2397.9,2397.7,0.8331]
[1728158400253,2.98983,2398.0,2397.7,1.92746368]
[1728158400457,1.7682,2398.0,2397.7,1.92746368]
[1728158400652,2.6562,2398.0,2397.7,2.26112368]
[1728158400861,2.98982,2398.0,2397.7,1.92746368]
[1728158401356,2.6562,2398.0,2397.7,1.92746368]
[1728158401563,2.98983,2398.0,2397.7,1.92746368]
[1728158401754,0.33364,2397.9,2397.7,1.92746368]
[1728158401955,2.6562,2398.0,2397.7,1.92746368]
[1728158402258,2.98983,2398.0,2397.8,0.0373]
[1728158402757,0.33364,2397.9,2397.8,0.0373]
[1728158403163,2.6562,2398.0,2397.8,0.0373]
[1728158403463,0.4182,2398.0,2397.8,0.0373]
[1728158404255,0.75183,2398.0,2397.8,0.0373]
[1728158404460,0.33364,2397.9,2397.8,1.13166368]
[1728158404656,1.7682,2398.0,2397.8,1.13166368]
[1728158404657,1.7682,2398.0,2397.8,0.0373]
[1728158404860,0.33364,2397.9,2397.8,0.0373]
[1728158405259,2.08774,2397.9,2397.8,0.0373]
[1728158405950,6.25814,2397.9,2397.8,0.0373]
[1728158406157,11.9245,2397.9,2397.5,1.09436368]
[1728158406354,0.33368,2397.6,2397.5,1.09436368]
[1728158406652,0.33368,2397.6,2397.3,1.09436368]
[1728158406653,0.33371,2397.4,2397.3,1.09436368]
[1728158406853,2.5042,2397.5,2397.3,1.67848473]
[1728158407155,2.5042,2397.5,2397.3,1.09385423]
[1728158407356,2.1705,2397.5,2397.4,1.09385423]
[1728158408465,2.50419,2397.5,2397.4,2.7738385]
[1728158408659,0.8205,2397.5,2397.4,2.77350906]
[1728158408965,0.8205,2397.5,2397.4,3.32191101]
[1728158409461,0.8205,2397.5,2397.4,1.67918398]
[1728158409657,0.4002,2397.5,2397.4,3.32191101]
[1728158409865,0.4002,2397.5,2397.4,4.53561101]
[1728158410963,0.73389,2397.5,2397.4,3.32191101]
[1728158411467,2.08389,2397.5,2397.4,1.09396077]
[1728158411770,0.33371,2397.4,2397.3,1.094067]
[1728158412060,0.33373,2397.2,2397.1,1.386067]
[1728158412365,0.33375,2397.1,2396.9,1.094067]
[1728158412664,0.4253,2397.0,2396.9,1.094067]
[1728158413556,0.4253,2397.0,2396.9,1.427847]
[1728158414263,0.4253,2397.0,2396.9,1.094067]
[1728158414467,0.4253,2397.0,2396.8,1.847047]
[1728158417857,0.4253,2397.0,2396.8,0.75298]
[1728158425468,0.4253,2397.0,2396.9,0.33378]
[1728158425966,0.4253,2397.0,2396.8,0.75298]
[1728158426569,0.4253,2397.0,2396.8,0.4192]
[1728158426765,1.2846,2397.1,2396.9,0.33378]
[1728158427159,1.2846,2397.1,2397.0,0.387]
[1728158435568,3.3048,2397.4,2397.0,0.387]
[1728158435873,4.1918,2397.4,2397.2,0.33373]
[1728158436075,4.1918,2397.4,2397.3,0.4181]
[1728158436076,4.0948,2397.4,2397.3,0.4181]
[1728158436669,4.42851,2397.4,2397.3,0.4181]
[1728158436975,4.42851,2397.4,2397.3,0.8337]
[1728158437677,3.54151,2397.4,2397.3,0.8337]
[1728158438171,3.2078,2397.4,2397.3,0.8337]
[1728158438371,4.138,2397.6,2397.3,0.8337]
[1728158438372,4.138,2397.6,2397.3,2.1837]
[1728158438583,5.35869,2397.6,2397.3,2.1837]
[1728158438776,6.70869,2397.6,2397.3,0.8337]
[1728158439080,5.82169,2397.6,2397.3,0.8337]
[1728158440271,1.68369,2397.6,2397.3,0.8337]
[1728158440779,1.35,2397.6,2397.3,0.8337]
[1728158440968,1.35,2397.6,2397.3,1.16741]
[1728158441169,1.68368,2397.6,2397.3,1.16741]
[1728158441576,1.68368,2397.6,2397.3,0.8337]
[1728158441771,1.35,2397.6,2397.3,0.8337]
[1728158441973,0.33371,2397.5,2397.3,0.8337]
[1728158442383,0.4151,2397.4,2397.3,0.8337]
[1728158442684,1.7651,2397.4,2397.3,0.8337]
[1728158443571,2.09881,2397.4,2397.3,0.8337]
[1728158445579,1.7651,2397.4,2397.2,0.3894]
[1728158445785,1.35,2397.3,2397.1,1.489867]
[1728158445978,0.33376,2397.0,2396.9,1.810367]
[1728158446173,0.33376,2397.0,2396.9,1.518367]
[1728158446377,0.33376,2397.0,2396.9,0.4243]
[1728158446689,0.73866,2397.0,2396.9,0.4243]
[1728158446885,0.73866,2397.0,2396.9,1.518367]
[1728158447081,0.73866,2397.0,2396.9,0.4243]
[1728158447482,0.73866,2397.0,2396.9,1.518367]
[1728158447682,0.73866,2397.0,2396.9,0.4243]
[1728158448078,0.4049,2397.0,2396.9,0.4243]
[1728158448580,0.4049,2397.0,2396.9,1.518367]
[1728158449286,0.4049,2397.0,2396.9,0.4243]
[1728158449485,0.4049,2397.0,2396.9,1.518367]
[1728158450185,0.73866,2397.0,2396.9,1.518367]
[1728158451581,0.73866,2397.0,2396.9,3.19566187]
[1728158451783,0.73866,2397.0,2396.9,1.518367]
[1728158452491,0.73866,2397.0,2396.9,3.19588543]
[1728158453983,0.4049,2397.0,2396.9,3.19588543]
[1728158454890,0.73866,2397.0,2396.9,3.19588543]
[1728158455491,0.73866,2397.0,2396.9,3.74454546]
[1728158455890,0.73866,2397.0,2396.9,3.19530556]
[1728158456191,0.73866,2397.0,2396.9,1.51778713]
[1728158456391,0.73866,2397.0,2396.9,3.7448715]
[1728158457284,1.68376,2397.1,2396.9,4.0786515]
[1728158457480,1.68376,2397.1,2397.0,1.093628]
[1728158458490,1.35,2397.1,2397.0,1.093628]
[1728158458695,1.35,2397.3,2397.0,3.32097693]
[1728158458892,1.35,2397.3,2397.2,0.33373]
[1728158459298,1.35,2397.3,2397.2,0.75573]
[1728158459699,1.35,2397.3,2397.2,0.422]
[1728158463397,1.35,2397.3,2397.1,1.51399869]
[1728158463598,2.09103,2397.2,2397.1,1.51399869]
[1728158464303,1.7573,2397.2,2397.1,1.51399869]
[1728158464497,0.4073,2397.2,2397.1,1.51399869]
[1728158465102,0.74103,2397.2,2397.1,1.09369869]
[1728158465303,0.74103,2397.2,2397.0,1.09369869]
[1728158465304,1.16633,2397.2,2397.0,1.09369869]
[1728158465501,1.35,2397.1,2397.0,1.09369869]
[1728158465708,1.35,2397.1,2397.0,2.77199697]
[1728158466104,1.35,2397.1,2397.0,3.10575697]
[1728158466811,1.35,2397.1,2397.0,2.01205828]
[1728158467011,1.35,2397.1,2397.0,3.65478531]
[1728158467201,1.35,2397.1,2397.0,2.01205828]
[1728158467603,1.35,2397.1,2397.0,3.65478531]
[1728158469209,1.35,2397.1,2397.0,2.77220158]
[1728158469418,1.35,2397.1,2397.0,1.67835568]
[1728158469714,1.35,2397.1,2397.0,3.32108271]
[1728158470109,1.35,2397.1,2397.0,1.67835568]
[1728158470311,1.68375,2397.1,2397.0,1.67835568]
[1728158470617,1.35,2397.1,2396.9,1.09383776]
[1728158470807,1.68376,2397.0,2396.9,1.09383776]
[1728158471108,1.68376,2397.0,2396.8,5.27562703]
[1728158471109,1.35,2397.0,2396.8,4.72673776]
[1728158471302,0.72598,2396.9,2396.8,4.30163776]
[1728158471508,1.11518,2396.9,2396.8,4.30163776]
[1728158472609,0.7814,2396.9,2396.8,4.30163776]
[1728158472814,0.7814,2396.9,2396.8,3.2078]
[1728158475819,0.33379,2396.8,2396.7,1.89033776]
[1728158476013,1.35,2396.8,2396.6,1.48983776]
[1728158476319,0.3338,2396.7,2396.6,1.48983776]
[1728158476912,0.3338,2396.7,2396.6,0.396]
[1728158477716,1.767,2396.8,2396.6,0.396]
[1728158478822,0.3338,2396.7,2396.6,0.396]
[1728158496938,0.33382,2396.6,2396.5,0.3916]
[1728158497136,2.09852,2396.6,2396.5,0.3916]
[1728158498435,1.35,2396.6,2396.5,0.72543]
[1728158499129,1.35,2396.6,2396.5,0.3916]
[1728158500130,0.33381,2396.7,2396.5,0.3916]
[1728158500331,0.887,2396.9,2396.5,0.3916]
[1728158500533,1.35,2396.7,2396.6,0.33381]
[1728158501231,1.35,2396.7,2396.5,0.3916]
[1728158501232,1.35,2396.7,2396.5,0.72542]
[1728158501432,1.35,2396.7,2396.5,1.81925776]
[1728158501633,1.35,2396.7,2396.5,0.72542]
[1728158501831,1.68381,2396.7,2396.5,0.3916]
[1728158502537,2.5698,2396.8,2396.5,1.48543776]
[1728158502732,0.33381,2396.7,2396.5,1.48543776]
[1728158503138,0.33381,2396.7,2396.5,0.3916]
[1728158503646,2.236,2396.8,2396.5,0.3916]
[1728158503841,0.33382,2396.6,2396.5,0.3916]
[1728158506437,0.74082,2396.6,2396.5,0.3916]
[1728158508744,1.68382,2396.6,2396.5,0.3916]
[1728158518142,2.08952,2396.6,2396.5,0.3916]
[1728158521547,1.7557,2396.6,2396.4,1.09383776]
[1728158521750,4.5817,2396.5,2396.2,1.48283776]
[1728158521943,0.33387,2396.2,2396.1,1.09383776]
[1728158522146,2.57087,2396.2,2396.1,1.09383776]
[1728158523037,2.57087,2396.2,2395.9,1.09383776]
[1728158523038,6.4106,2396.2,2395.9,1.09383776]
[1728158523237,0.33392,2395.9,2395.8,1.50473776]
[1728158523444,0.33392,2395.9,2395.8,1.09383776]
[1728158523652,0.75942,2395.9,2395.8,1.09383776]
[1728158525349,0.33393,2395.8,2395.7,1.09383776]
[1728158525538,1.68393,2395.8,2395.7,1.09383776]
[1728158526346,1.68393,2395.8,2395.6,4.30163776]
[1728158526852,2.236,2395.8,2395.6,4.30163776]
[1728158527055,2.56993,2395.8,2395.6,4.30163776]
[1728158529256,0.33394,2395.7,2395.5,1.51083776]
[1728158530048,2.236,2395.8,2395.5,1.51083776]
[1728158530255,2.56994,2395.8,2395.5,1.51083776]
[1728158530860,0.33394,2395.7,2395.5,1.51083776]
[1728158531355,0.33394,2395.7,2395.5,0.417]
[1728158532055,0.33394,2395.7,2395.5,1.51083776]
[1728158532253,0.33394,2395.7,2395.5,0.417]
[1728158533464,2.236,2395.8,2395.5,0.417]
[1728158533755,1.35,2395.6,2395.5,0.417]
[1728158534356,1.68396,2395.6,2395.5,0.417]
[1728158538755,1.35,2395.6,2395.5,0.417]
[1728158539965,1.68396,2395.6,2395.5,0.417]
[1728158540152,1.68396,2395.6,2395.4,0.8323]
[1728158540153,0.33397,2395.5,2395.4,0.8323]